[Event "BAN-chT SAIF POWERTEC 2020"]
[Site "Dhaka"]
[Date "2021.03.26"]
[Round "8.8"]
[White "Manon, Reja Neer"]
[Black "Asif, Mahmud"]
[Result "1-0"]
[ECO "C55"]
[WhiteElo "2143"]
[BlackElo "1907"]
[Annotator "ChessBase"]
[PlyCount "114"]
[EventDate "2021.03.19"]
[EventType "team-tourn"]
[EventCountry "BAN"]
[SourceTitle "playchess.com"]
[Source "ChessBase"]
[SourceQuality "1"]
[TimeControl "5400+30"]

1. e4 {[%emt 0:00:00]} e5 {[%emt 0:00:00]} 2. Nf3 {[%emt 0:00:00]} Nc6 {[%emt 0:00:42]} 3. Bb5 {[%emt 0:00:00]} a6 {[%emt 0:00:31]} 4. Ba4 {[%emt 0:00:00]} Nf6 {[%emt 0:00:21]} 5. O-O {[%emt 0:00:06]} Be7 {[%emt 0:00:49]} 6. d3 {[%emt 0:00:47]} b5 {[%emt 0:02:03]} 7. Bb3 {[%emt 0:00:03]} d6 {[%emt 0:02:24]} 8. h3 {[%emt 0:00:30]} O-O {[%emt 0:02:28]} 9. c3 {[%emt 0:00:46]} Na5 {[%emt 0:02:28]} 10. Bc2 {[%emt 0:00:07]} c5 {[%emt 0:00:26]} 11. Be3 {[%emt 0:00:39]} Qc7 {[%emt 0:05:10]} 12. Nbd2 {[%emt 0:04:33]} Bb7 {[%emt 0:06:06]} 13. d4 {[%emt 0:01:52]} Nc6 {[%emt 0:02:15]} 14. d5 {[%emt 0:01:56]} Nb8 {[%emt 0:00:33]} 15. Nh2 {[%emt 0:09:30]} Nbd7 {[%emt 0:07:33]} 16. f4 {[%emt 0:02:05]} Rfe8 {[%emt 0:07:20]} 17. f5 {[%emt 0:02:08]} c4 {[%emt 0:03:20]} 18. g4 {[%emt 0:01:20]} h6 {[%emt 0:02:08]} 19. h4 {[%emt 0:03:30]} Nh7 {[%emt 0:06:16]} 20. Ndf3 {[%emt 0:11:20]} Qd8 {[%emt 0:04:24]} 21. Qe1 {[%emt 0:01:09]} Rc8 {[%emt 0:08:46]} 22. Qg3 {[%emt 0:03:32]} f6 {[%emt 0:34:57]} 23. Qg2 {[%emt 0:03:02]} a5 {[%emt 0:02:30]} 24. Qd2 {[%emt 0:00:24]} Bf8 {[%emt 0:29:55]} 25. Kh1 {[%emt 0:01:39]} Ba6 {[%emt 0:09:46]} 26. Rg1 {[%emt 0:02:28]} b4 {[%emt 0:19:50]} 27. g5 {[%emt 0:03:13]} fxg5 {[%emt 0:00:54]} 28. hxg5 {[%emt 0:00:01]} bxc3 {[%emt 0:03:46]} 29. bxc3 {[%emt 0:00:20]} h5 {[%emt 0:01:08]} 30. f6 {[%emt 0:01:16]} Nhxf6 {[%emt 0:01:22]} 31. gxf6 {[%emt 0:00:03]} Nxf6 {[%emt 0:00:13]} 32. Qg2 {[%emt 0:02:09]} Rb8 {[%emt 0:01:07]} 33. Bh6 {[%emt 0:00:08]} Qc7 {[%emt 0:01:06]} 34. Nh4 {[%emt 0:00:29]} Re7 {[%emt 0:03:07]} 35. Raf1 {[%emt 0:00:47]} Rf7 {[%emt 0:01:20]} 36. Nf5 {[%emt 0:06:24]} Bc8 {[%emt 0:02:38]} 37. Nxg7 {[%emt 0:01:27]} Ng4 {[%emt 0:03:14]} 38. Nxh5 {[%emt 0:01:59]} Rxf1 {[%emt 0:01:23]} 39. Rxf1 {[%emt 0:01:12]} Bxh6 {[%emt 0:00:21]} 40. Nxg4 {[%emt 0:02:14]} Bxg4 {[%emt 0:00:26]} 41. Qxg4+ {[%emt 0:00:33]} Kh8 {[%emt 0:01:03]} 42. Qe6 {[%emt 0:02:18]} Bf4 {[%emt 0:02:47]} 43. Nxf4 {[%emt 0:01:05]} exf4 {[%emt 0:01:47]} 44. Qh6+ {[%emt 0:00:03]} Qh7 {[%emt 0:00:25]} 45. Qxh7+ {[%emt 0:00:03]} Kxh7 {[%emt 0:00:10]} 46. e5+ {[%emt 0:00:02]} Kg7 {[%emt 0:00:10]} 47. exd6 {[%emt 0:00:08]} Rd8 {[%emt 0:00:22]} 48. Rxf4 {[%emt 0:00:17]} Rxd6 {[%emt 0:00:10]} 49. Rd4 {[%emt 0:00:15]} Kf6 {[%emt 0:00:09]} 50. Ba4 {[%emt 0:00:10]} Ke5 {[%emt 0:00:33]} 51. Bc6 {[%emt 0:35:28]} Rh6+ {[%emt 0:00:11]} 52. Kg2 {[%emt 0:00:32]} Rg6+ {[%emt 0:00:11]} 53. Kf2 {[%emt 0:00:19]} Rf6+ {[%emt 0:00:10]} 54. Ke3 {[%emt 0:00:20]} Rh6 {[%emt 0:00:13]} 55. Re4+ {[%emt 0:01:08]} Kf5 {[%emt 0:00:26]} 56. Rxc4 {[%emt 0:00:08]} Ke5 {[%emt 0:04:16]} 57. Ra4 {[%emt 0:00:31]} Rh8 {[%emt 0:03:36]} 1-0

[Event "BAN-chT SAIF POWERTEC 2020"]
[Site "Dhaka"]
[Date "2021.03.26"]
[Round "8.9"]
[White "Rahman, Syed Mahfuzur"]
[Black "Chowdhury, Sohel"]
[Result "1-0"]
[ECO "D52"]
[WhiteElo "2158"]
[BlackElo "2149"]
[Annotator "ChessBase"]
[PlyCount "101"]
[EventDate "2021.03.19"]
[EventType "team-tourn"]
[EventCountry "BAN"]
[SourceTitle "playchess.com"]
[Source "ChessBase"]
[SourceQuality "1"]
[TimeControl "5400+30"]

1. d4 {[%emt 0:00:00]} d5 {[%emt 0:00:00]} 2. c4 {[%emt 0:00:02]} c6 {[%emt 0:00:04]} 3. Nc3 {[%emt 0:00:04]} Nf6 {[%emt 0:00:17]} 4. Nf3 {[%emt 0:00:12]} e6 {[%emt 0:00:11]} 5. Qb3 {[%emt 0:09:05]} Nbd7 {[%emt 0:03:08]} 6. Bg5 {[%emt 0:03:40]} Qa5 {[%emt 0:06:16]} 7. Bxf6 {[%emt 0:14:41]} Nxf6 {[%emt 1:23:34]} 8. e3 {[%emt 0:00:06]} Ne4 {[%emt 0:07:03]} 9. Bd3 {[%emt 0:03:47]} Nxc3 {[%emt 0:04:52]} 10. bxc3 {[%emt 0:00:15]} Be7 {[%emt 1:12:30]} 11. O-O {[%emt 0:00:27]} O-O {[%emt 1:12:38]} 12. Ne5 {[%emt 0:10:49]} Bf6 {[%emt 0:04:15]} 13. f4 {[%emt 0:00:22]} g6 {[%emt 0:00:14]} 14. g4 {[%emt 0:08:37]} Bg7 {[%emt 0:01:40]} 15. g5 {[%emt 0:00:21]} Qc7 {[%emt 1:08:23]} 16. Rac1 {[%emt 0:45:32]} Bd7 {[%emt 0:08:44]} 17. cxd5 {[%emt 0:04:35]} cxd5 {[%emt 0:04:00]} 18. c4 {[%emt 0:00:20]} Rac8 {[%emt 0:07:33]} 19. cxd5 {[%emt 0:21:06]} Qxc1 {[%emt 0:01:22]} 20. Rxc1 {[%emt 0:02:49]} Rxc1+ {[%emt 0:00:02]} 21. Kf2 {[%emt 0:00:28]} Bxe5 {[%emt 0:00:10]} 22. fxe5 {[%emt 0:00:20]} exd5 {[%emt 0:00:49]} 23. Qxd5 {[%emt 0:13:30]} Be6 {[%emt 0:40:50]} 24. Qxb7 {[%emt 0:01:09]} Ra1 {[%emt 0:28:25]} 25. d5 {[%emt 0:01:45]} Rxa2+ {[%emt 0:00:02]} 26. Kg3 {[%emt 0:01:19]} Bc8 {[%emt 0:02:09]} 27. Qb3 {[%emt 0:04:40]} Ra5 {[%emt 0:03:57]} 28. h4 {[%emt 0:00:22]} Re8 {[%emt 0:02:46]} 29. Bb5 {[%emt 0:01:56]} Rf8 {[%emt 0:21:51]} 30. Qc4 {[%emt 0:04:17]} Ra3 {[%emt 0:02:53]} 31. Qc5 {[%emt 0:01:37]} Ra5 {[%emt 0:01:14]} 32. Qb4 {[%emt 0:00:24]} Ra1 {[%emt 0:00:44]} 33. Qe7 {[%emt 0:00:46]} Rg1+ {[%emt 0:01:33]} 34. Kf2 {[%emt 0:00:12]} Rb1 {[%emt 0:00:36]} 35. Bc6 {[%emt 0:01:22]} a5 {[%emt 0:04:24]} 36. d6 {[%emt 0:01:25]} Be6 {[%emt 0:02:37]} 37. h5 {[%emt 0:00:38]} gxh5 {[%emt 0:01:00]} 38. d7 {[%emt 0:01:06]} Rbb8 {[%emt 0:05:30]} 39. Qf6 {[%emt 0:00:43]} Rfd8 {[%emt 0:02:37]} 40. Qh6 {[%emt 0:00:26]} Bf5 {[%emt 0:01:13]} 41. Qd6 {[%emt 0:00:24]} h4 {[%emt 0:00:52]} 42. Kf3 {[%emt 0:00:37]} h3 {[%emt 0:00:19]} 43. Kg3 {[%emt 0:00:28]} Be6 {[%emt 0:00:27]} 44. Qe7 {[%emt 0:00:18]} Rf8 {[%emt 0:01:47]} 45. Qc5 {[%emt 0:00:42]} Rfd8 {[%emt 0:01:29]} 46. Qe7 {[%emt 0:00:19]} Rf8 {[%emt 0:00:02]} 47. Kh4 {[%emt 0:00:30]} Rb4+ {[%emt 0:00:41]} 48. Kh5 {[%emt 0:00:41]} Bg4+ {[%emt 0:00:23]} 49. Kh6 {[%emt 0:00:36]} Bxd7 {[%emt 0:01:09]} 50. g6 {[%emt 0:00:02]} Rh4+ {[%emt 0:00:34]} 51. Qxh4 {[%emt 0:00:05]} 1-0

[Event "BAN-chT SAIF POWERTEC 2020"]
[Site "Dhaka"]
[Date "2021.03.26"]
[Round "8.12"]
[White "Chatterjee, Debaraj"]
[Black "Mihir Lal, Das"]
[Result "0-1"]
[ECO "E11"]
[WhiteElo "2223"]
[BlackElo "1964"]
[Annotator "ChessBase"]
[PlyCount "84"]
[EventDate "2021.03.19"]
[EventType "team-tourn"]
[EventCountry "BAN"]
[SourceTitle "playchess.com"]
[Source "ChessBase"]
[SourceQuality "1"]
[TimeControl "5400+30"]

1. d4 {[%emt 1:30:30]} Nf6 {[%emt 1:30:30]} 2. c4 {[%emt 0:00:30]} e6 {[%emt 0:00:30]} 3. g3 {[%emt 0:00:30]} d5 {[%emt 0:00:30]} 4. Nf3 {[%emt 0:00:30]} Bb4+ {[%emt 0:00:30]} 5. Bd2 {[%emt 0:00:30]} Be7 {[%emt 0:00:30]} 6. Bg2 {[%emt 0:00:30]} O-O {[%emt 0:00:30]} 7. O-O {[%emt 0:00:30]} Ne4 {[%emt 0:00:30]} 8. Qc2 {[%emt 0:00:30]} Nxd2 {[%emt 0:00:30]} 9. Nbxd2 {[%emt 0:00:30]} c6 {[%emt 0:00:30]} 10. e4 {[%emt 0:00:30]} dxe4 {[%emt 0:00:30]} 11. Nxe4 {[%emt 0:00:30]} Nd7 {[%emt 0:00:30]} 12. Rfd1 {[%emt 0:00:30]} Nf6 {[%emt 0:00:30]} 13. Ne5 {[%emt 0:00:30]} Qc7 {[%emt 0:00:30]} 14. Nxf6+ {[%emt 0:00:30]} Bxf6 {[%emt 0:00:30]} 15. Qe4 {[%emt 0:00:30]} c5 {[%emt 0:00:30]} 16. f4 {[%emt 0:00:30]} cxd4 {[%emt 0:00:30]} 17. Rxd4 {[%emt 0:00:30]} Be7 {[%emt 0:00:30]} 18. Kh1 {[%emt 0:00:30]} f6 {[%emt 0:00:30]} 19. Nf3 {[%emt 0:00:30]} a5 {[%emt 0:00:30]} 20. Rad1 {[%emt 0:00:30]} Ra6 {[%emt 0:00:30]} 21. b3 {[%emt 0:00:30]} a4 {[%emt 0:00:30]} 22. R4d3 {[%emt 0:00:30]} axb3 {[%emt 0:00:30]} 23. axb3 {[%emt 0:00:30]} Ra2 {[%emt 0:00:30]} 24. Bh3 {[%emt 0:00:30]} Qb6 {[%emt 0:00:30]} 25. Qe3 {[%emt 0:00:30]} Bc5 {[%emt 0:00:30]} 26. Qe1 {[%emt 0:00:30]} Qc6 {[%emt 0:00:30]} 27. Bg2 {[%emt 0:00:30]} b6 {[%emt 0:00:30]} 28. Nd2 {[%emt 0:00:30]} Qc7 {[%emt 0:00:30]} 29. Qe4 {[%emt 0:00:30]} Qf7 {[%emt 0:00:30]} 30. Qf3 {[%emt 0:00:30]} f5 {[%emt 0:00:30]} 31. h4 {[%emt 0:00:30]} h6 {[%emt 0:00:30]} 32. h5 {[%emt 0:00:30]} Kh7 {[%emt 0:00:30]} 33. Qe2 {[%emt 0:00:30]} Rg8 {[%emt 0:00:30]} 34. Kh2 {[%emt 0:00:30]} g6 {[%emt 0:00:30]} 35. hxg6+ {[%emt 0:00:30]} Qxg6 {[%emt 0:00:30]} 36. Bh3 {[%emt 0:00:30]} h5 {[%emt 0:00:30]} 37. Qf3 {[%emt 0:00:30]} Rg7 {[%emt 0:00:30]} 38. Bg2 {[%emt 0:00:30]} h4 {[%emt 0:00:30]} 39. gxh4 {[%emt 0:00:30]} Bb7 {[%emt 0:00:30]} 40. Qxb7 {[%emt 0:00:30]} Rxb7 {[%emt 0:00:30]} 41. Bxb7 {[%emt 0:00:30]} Qg4 {[%emt 0:00:30]} 42. Rf1 {[%emt 0:00:30]} Qe2+ {[%emt 0:00:30]} 0-1

[Event "BAN-chT SAIF POWERTEC 2020"]
[Site "Dhaka"]
[Date "2021.03.27"]
[Round "9.6"]
[White "Kovalev, Vladislav"]
[Black "Puranik, Abhimanyu"]
[Result "*"]
[ECO "D13"]
[WhiteElo "2648"]
[BlackElo "2584"]
[Annotator "RC"]
[PlyCount "23"]
[EventDate "2021.03.19"]
[EventType "team-tourn"]
[EventCountry "BAN"]
[SourceTitle "playchess.com"]
[Source "ChessBase"]
[SourceQuality "1"]
[TimeControl "5400+30"]

1. d4 {[%emt 0:00:00]} d5 {[%emt 0:00:00]} 2. c4 {[%emt 0:00:00]} c6 {[%emt 0:00:08]} 3. Nc3 {[%emt 0:00:02]} Nf6 {[%emt 1:31:22]} 4. cxd5 {[%emt 0:00:33]} cxd5 {[%emt 0:00:00]} 5. Bf4 {[%emt 0:00:03]} Nc6 {[%emt 0:00:00]} 6. e3 {[%emt 1:32:22]} a6 {[%emt 0:00:00]} 7. Be2 {[%emt 0:00:30]} Bf5 {[%emt 0:00:00]} 8. Nf3 {[%emt 0:00:00]} e6 {[%emt 0:00:00]} 9. Qb3 {[%emt 0:00:00]} Bd6 {[%emt 0:00:00]} 10. Bxd6 {[%emt 0:00:00]} Qxd6 {[%emt 0:00:00]} 11. Qxb7 {[%emt 0:00:00]} O-O {[%emt 0:00:00]} 12. Qb3 {[%emt 0:00:00]} *

[Event "BAN-chT SAIF POWERTEC 2020"]
[Site "Dhaka"]
[Date "2021.03.27"]
[Round "9.7"]
[White "Narayanan.S.L"]
[Black "Reefat, Bin-Sattar"]
[Result "*"]
[ECO "C80"]
[WhiteElo "2618"]
[BlackElo "2409"]
[Annotator "ChessBase"]
[PlyCount "39"]
[EventDate "2021.03.19"]
[EventType "team-tourn"]
[EventCountry "BAN"]
[SourceTitle "playchess.com"]
[Source "ChessBase"]
[SourceQuality "1"]
[TimeControl "5400+30"]

1. e4 {[%emt 0:00:00]} e5 {[%emt 0:00:00]} 2. Nf3 {[%emt 0:00:00]} Nc6 {[%emt 0:00:00]} 3. Bb5 {[%emt 0:00:00]} a6 {[%emt 0:00:00]} 4. Ba4 {[%emt 0:00:00]} Nf6 {[%emt 0:00:00]} 5. O-O {[%emt 0:00:00]} Nxe4 {[%emt 0:00:03]} 6. d4 {[%emt 0:00:15]} b5 {[%emt 0:00:05]} 7. Bb3 {[%emt 0:00:05]} d5 {[%emt 0:00:04]} 8. dxe5 {[%emt 0:00:06]} Be6 {[%emt 0:00:05]} 9. Nbd2 {[%emt 0:07:36]} Nc5 {[%emt 0:00:40]} 10. c3 {[%emt 0:00:10]} d4 {[%emt 0:00:55]} 11. Bxe6 {[%emt 0:03:25]} Nxe6 {[%emt 0:00:06]} 12. cxd4 {[%emt 0:00:06]} Ncxd4 {[%emt 0:00:49]} 13. a4 {[%emt 0:00:15]} Bb4 {[%emt 0:00:23]} 14. axb5 {[%emt 0:09:41]} Nxb5 {[%emt 0:00:36]} 15. Ne4 {[%emt 0:01:20]} Qxd1 {[%emt 0:01:05]} 16. Rxd1 {[%emt 0:00:03]} Ke7 {[%emt 0:00:13]} 17. Be3 {[%emt 0:00:42]} Rhd8 {[%emt 0:04:55]} 18. Rdc1 {[%emt 0:00:04]} Rd5 {[%emt 0:08:28]} 19. g4 {[%emt 0:02:02]} a5 {[%emt 0:06:45]} 20. Kg2 {[%emt 0:05:09]} *

[Event "BAN-chT SAIF POWERTEC 2020"]
[Site "Dhaka"]
[Date "2021.03.28"]
[Round "10.1"]
[White "Mohammad Fahad, Rahman"]
[Black "Md., Matiur Rahman (Mamu"]
[Result "1-0"]
[ECO "C88"]
[WhiteElo "2307"]
[BlackElo "2158"]
[Annotator "NA"]
[PlyCount "67"]
[EventDate "2021.03.19"]
[EventType "team-tourn"]
[EventCountry "BAN"]
[SourceTitle "playchess.com"]
[Source "ChessBase"]
[SourceQuality "1"]
[TimeControl "5400+30"]

1. e4 {[%emt 0:00:00]} e5 {[%emt 0:00:14]} 2. Nf3 {[%emt 0:00:14]} Nc6 {[%emt 0:00:27]} 3. Bb5 {[%emt 0:01:03]} a6 {[%emt 0:00:45]} 4. Ba4 {[%emt 0:00:19]} Nf6 {[%emt 0:00:21]} 5. O-O {[%emt 0:00:17]} b5 {[%emt 0:03:20]} 6. Bb3 {[%emt 0:00:13]} Be7 {[%emt 0:00:16]} 7. Re1 {[%emt 0:00:39]} O-O {[%emt 0:00:17]} 8. a4 {[%emt 0:01:12]} Rb8 {[%emt 0:00:57]} 9. axb5 {[%emt 0:01:07]} axb5 {[%emt 0:00:16]} 10. c3 {[%emt 0:00:12]} d6 {[%emt 0:03:14]} 11. d4 {[%emt 0:00:17]} Qd7 {[%emt 0:03:20]} 12. Nbd2 {[%emt 0:09:43]} Bb7 {[%emt 0:01:36]} 13. d5 {[%emt 0:09:34]} Nd8 {[%emt 0:00:23]} 14. Nf1 {[%emt 0:00:17]} Bc8 {[%emt 0:02:36]} 15. Ng3 {[%emt 0:04:51]} Nb7 {[%emt 0:02:28]} 16. Be3 {[%emt 0:03:17]} Ng4 {[%emt 0:00:41]} 17. Ba7 {[%emt 0:01:48]} Ra8 {[%emt 0:00:18]} 18. Qe2 {[%emt 0:03:24]} Qe8 {[%emt 0:01:07]} 19. c4 {[%emt 0:05:50]} bxc4 {[%emt 0:13:08]} 20. Qxc4 {[%emt 0:01:02]} Bd8 {[%emt 0:00:25]} 21. Ba4 {[%emt 0:08:15]} Bd7 {[%emt 0:06:16]} 22. Bc6 {[%emt 0:02:25]} Bxc6 {[%emt 0:03:40]} 23. Qxc6 {[%emt 0:00:27]} Qxc6 {[%emt 0:00:50]} 24. dxc6 {[%emt 0:00:10]} Rxa7 {[%emt 0:01:47]} 25. Rxa7 {[%emt 0:00:18]} Nc5 {[%emt 0:00:01]} 26. h3 {[%emt 0:00:36]} Nh6 {[%emt 0:01:23]} 27. b4 {[%emt 0:00:50]} Ne6 {[%emt 0:00:35]} 28. b5 {[%emt 0:02:32]} g6 {[%emt 0:00:42]} 29. Rd1 {[%emt 0:03:17]} f5 {[%emt 0:02:03]} 30. b6 {[%emt 0:00:51]} cxb6 {[%emt 0:01:37]} 31. Rxd6 {[%emt 0:00:25]} fxe4 {[%emt 0:00:38]} 32. Rxe6 {[%emt 0:01:41]} exf3 {[%emt 0:00:25]} 33. c7 {[%emt 0:00:12]} Bxc7 {[%emt 0:00:03]} 34. Rxc7 {[%emt 0:00:10]} 1-0

[Event "BAN-chT SAIF POWERTEC 2020"]
[Site "Dhaka"]
[Date "2021.03.28"]
[Round "10.1"]
[White "Rahman, Syed Mahfuzur"]
[Black "Mohammad Fahad, Rahman"]
[Result "0-1"]
[ECO "D45"]
[WhiteElo "2158"]
[BlackElo "2307"]
[Annotator "NA"]
[PlyCount "72"]
[EventDate "2021.03.19"]
[EventType "team-tourn"]
[EventCountry "BAN"]
[SourceTitle "playchess.com"]
[Source "ChessBase"]
[SourceQuality "1"]
[TimeControl "5400+30"]

1. d4 {[%emt 0:00:00]} d5 {[%emt 0:00:00]} 2. c4 {[%emt 0:00:05]} c6 {[%emt 0:00:00]} 3. Nc3 {[%emt 0:00:03]} Nf6 {[%emt 0:00:04]} 4. Nf3 {[%emt 0:00:26]} e6 {[%emt 0:00:13]} 5. e3 {[%emt 0:07:20]} Nbd7 {[%emt 0:00:21]} 6. Qc2 {[%emt 0:00:10]} Bd6 {[%emt 0:00:15]} 7. Be2 {[%emt 0:05:11]} O-O {[%emt 0:00:37]} 8. O-O {[%emt 0:06:29]} dxc4 {[%emt 0:00:27]} 9. e4 {[%emt 0:05:13]} e5 $1 {[%emt 0:06:16]} 10. Be3 {[%emt 0:17:09]} b5 {[%emt 0:17:51]} 11. a4 $15 {[%emt 0:09:39]} b4 {[%emt 0:05:49]} 12. Nb1 {[%emt 0:01:56]} exd4 {[%emt 0:07:36]} 13. Bxd4 {[%emt 0:04:10]} c5 {[%emt 0:01:54]} 14. Bxf6 {[%emt 0:03:59]} Qxf6 {[%emt 0:00:14]} 15. Nbd2 {[%emt 0:00:45]} c3 {[%emt 0:11:49]} 16. bxc3 {[%emt 0:03:21]} Ne5 {[%emt 0:00:33]} 17. a5 {[%emt 0:06:50]} bxc3 {[%emt 0:03:18]} 18. Qxc3 {[%emt 0:04:47]} Nxf3+ {[%emt 0:04:55]} 19. Qxf3 {[%emt 0:00:49]} Qh6 {[%emt 0:00:08]} 20. g3 {[%emt 0:03:28]} Qxd2 {[%emt 0:00:21]} 21. Rad1 {[%emt 0:00:42]} Qxa5 {[%emt 0:01:37]} 22. Rxd6 {[%emt 0:00:36]} Be6 {[%emt 0:00:42]} 23. Rc1 {[%emt 0:03:13]} Rfd8 {[%emt 0:08:24]} 24. Rc6 {[%emt 0:07:22]} Rac8 {[%emt 0:00:19]} 25. Ra6 {[%emt 0:00:38]} Qd2 {[%emt 0:05:56]} 26. Rd1 {[%emt 0:02:48]} Qb2 {[%emt 0:00:09]} 27. Rxd8+ {[%emt 0:01:51]} Rxd8 {[%emt 0:00:01]} 28. Rxa7 {[%emt 0:01:40]} Rc8 {[%emt 0:00:18]} 29. Ba6 {[%emt 0:01:50]} Qa1+ {[%emt 0:02:45]} 30. Kg2 {[%emt 0:00:09]} Bc4 {[%emt 0:00:08]} 31. Qf5 {[%emt 0:02:11]} Rf8 {[%emt 0:02:35]} 32. Qxc5 {[%emt 0:00:39]} Qf1+ {[%emt 0:00:09]} 33. Kf3 {[%emt 0:00:10]} Bxa6 {[%emt 0:00:23]} 34. Qc6 {[%emt 0:00:37]} Qd1+ {[%emt 0:00:46]} 35. Kf4 {[%emt 0:00:26]} Qd2+ {[%emt 0:00:27]} 36. Kf3 {[%emt 0:00:28]} Be2+ {[%emt 0:00:18]} 0-1

[Event "BAN-chT SAIF POWERTEC 2020"]
[Site "Dhaka"]
[Date "2021.03.28"]
[Round "10.2"]
[White "Sadhwani, Raunak"]
[Black "Bhuiyan, Golam Mostafa"]
[Result "1-0"]
[ECO "E65"]
[WhiteElo "2545"]
[BlackElo "2055"]
[Annotator "ChessBase"]
[PlyCount "95"]
[EventDate "2021.03.19"]
[EventType "team-tourn"]
[EventCountry "BAN"]
[SourceTitle "playchess.com"]
[Source "ChessBase"]
[SourceQuality "1"]
[TimeControl "5400+30"]

1. c4 {[%emt 0:00:00]} Nf6 {[%emt 0:00:00]} 2. Nf3 {[%emt 0:00:00]} g6 {[%emt 0:00:00]} 3. g3 {[%emt 0:00:00]} Bg7 {[%emt 0:00:00]} 4. Bg2 {[%emt 0:00:00]} d6 {[%emt 0:00:07]} 5. O-O {[%emt 0:00:00]} O-O {[%emt 0:00:07]} 6. Nc3 {[%emt 0:00:00]} c5 {[%emt 0:00:35]} 7. d4 {[%emt 0:00:03]} Nbd7 {[%emt 0:04:20]} 8. b3 {[%emt 0:03:39]} Rb8 {[%emt 0:01:17]} 9. Bb2 {[%emt 0:00:22]} a6 {[%emt 0:01:42]} 10. a4 {[%emt 1:30:56]} e6 {[%emt 0:03:09]} 11. dxc5 {[%emt 0:00:00]} dxc5 {[%emt 0:00:24]} 12. Qd6 {[%emt 0:01:00]} Ne8 {[%emt 0:05:12]} 13. Qd2 {[%emt 0:00:30]} Nef6 {[%emt 0:03:57]} 14. Rfd1 {[%emt 0:00:00]} Qc7 {[%emt 0:00:21]} 15. Qd6 {[%emt 0:00:00]} Qxd6 {[%emt 0:04:26]} 16. Rxd6 {[%emt 0:00:00]} Re8 {[%emt 0:15:19]} 17. Rad1 {[%emt 0:00:00]} Bf8 {[%emt 0:05:07]} 18. R6d3 {[%emt 0:00:00]} Bg7 {[%emt 0:00:23]} 19. Kf1 {[%emt 0:03:00]} Re7 {[%emt 0:02:19]} 20. Bc1 {[%emt 0:00:00]} h6 {[%emt 0:51:15]} 21. a5 {[%emt 0:00:00]} b6 {[%emt 0:00:00]} 22. axb6 {[%emt 0:01:30]} Bb7 {[%emt 0:00:00]} 23. Na4 {[%emt 0:00:00]} Bc6 {[%emt 0:00:00]} 24. Bf4 {[%emt 0:00:00]} e5 {[%emt 0:00:00]} 25. Nxe5 {[%emt 0:00:00]} Bxg2+ {[%emt 0:00:00]} 26. Kxg2 {[%emt 0:00:00]} Nxe5 {[%emt 0:00:00]} 27. Rd8+ {[%emt 0:00:00]} Rxd8 {[%emt 0:00:00]} 28. Rxd8+ {[%emt 0:00:00]} Ne8 {[%emt 0:00:00]} 29. b7 {[%emt 0:00:00]} Nc6 {[%emt 0:00:00]} 30. Nxc5 {[%emt 0:00:00]} Bd4 {[%emt 0:00:00]} 31. Rxd4 {[%emt 0:00:00]} Rxb7 {[%emt 0:05:30]} 32. Rd3 {[%emt 0:00:00]} Ra7 {[%emt 0:00:00]} 33. Bxh6 {[%emt 0:00:00]} a5 {[%emt 0:00:00]} 34. Be3 {[%emt 0:00:00]} Ra8 {[%emt 0:01:30]} 35. h4 {[%emt 0:00:00]} Kg7 {[%emt 0:00:00]} 36. Bd2 {[%emt 0:07:00]} Kg8 {[%emt 0:00:00]} 37. Bc3 {[%emt 0:00:00]} Ng7 {[%emt 0:00:00]} 38. g4 {[%emt 0:00:00]} Ra7 {[%emt 0:00:53]} 39. Rd5 {[%emt 0:00:00]} Ne8 {[%emt 0:00:12]} 40. h5 {[%emt 0:00:00]} Nb4 {[%emt 0:00:21]} 41. Rd8 {[%emt 0:00:00]} Kf8 {[%emt 0:00:13]} 42. h6 {[%emt 0:00:00]} f6 {[%emt 0:00:34]} 43. Ne6+ {[%emt 0:00:00]} Ke7 {[%emt 0:01:38]} 44. h7 {[%emt 0:04:00]} Kxe6 {[%emt 0:00:34]} 45. Rxe8+ {[%emt 0:00:00]} Kd6 {[%emt 0:00:33]} 46. h8=Q {[%emt 0:00:00]} Rf7 {[%emt 0:00:25]} 47. Bxf6 {[%emt 0:00:00]} Nc6 {[%emt 0:00:22]} 48. g5 {[%emt 0:02:00]} 1-0

[Event "BAN-chT SAIF POWERTEC 2020"]
[Site "Dhaka"]
[Date "2021.03.28"]
[Round "10.2"]
[White "Sahu, Sekhar Chandra"]
[Black "Ganguly, Surya Shekhar"]
[Result "1/2-1/2"]
[ECO "E76"]
[WhiteElo "2049"]
[BlackElo "2635"]
[Annotator "ChessBase"]
[PlyCount "68"]
[EventDate "2021.03.19"]
[EventType "team-tourn"]
[EventCountry "BAN"]
[SourceTitle "playchess.com"]
[Source "ChessBase"]
[SourceQuality "1"]
[TimeControl "5400+30"]

1. c4 {[%emt 0:00:00]} Nf6 {[%emt 0:00:00]} 2. Nc3 {[%emt 0:00:00]} g6 {[%emt 0:00:00]} 3. e4 {[%emt 0:00:20]} d6 {[%emt 0:00:04]} 4. d4 {[%emt 0:00:09]} Bg7 {[%emt 0:00:06]} 5. f4 {[%emt 0:00:24]} c5 {[%emt 0:00:19]} 6. dxc5 {[%emt 0:00:46]} Qa5 {[%emt 0:02:21]} 7. Bd3 {[%emt 0:00:14]} Qxc5 {[%emt 0:04:35]} 8. Nf3 {[%emt 1:32:07]} Nc6 {[%emt 1:26:35]} 9. Na4 {[%emt 0:00:30]} Qa5+ {[%emt 0:00:00]} 10. Nc3 {[%emt 0:00:00]} Be6 {[%emt 0:00:00]} 11. Bd2 {[%emt 0:00:00]} Qb6 {[%emt 0:01:30]} 12. Nd5 {[%emt 0:00:00]} Bxd5 {[%emt 0:00:00]} 13. cxd5 {[%emt 0:00:00]} Nb8 {[%emt 0:01:00]} 14. Qb3 {[%emt 0:00:00]} Nfd7 {[%emt 0:00:30]} 15. Qxb6 {[%emt 0:00:00]} axb6 {[%emt 0:00:00]} 16. Bc3 {[%emt 0:00:00]} Bxc3+ {[%emt 0:00:00]} 17. bxc3 {[%emt 0:00:00]} Nc5 {[%emt 0:01:30]} 18. Kd2 {[%emt 0:00:00]} Nbd7 {[%emt 0:00:00]} 19. Bc2 {[%emt 0:05:00]} O-O {[%emt 0:00:00]} 20. Nd4 {[%emt 0:00:30]} Ra3 {[%emt 0:00:00]} 21. Nb5 {[%emt 0:00:00]} Ra5 {[%emt 0:00:00]} 22. a4 {[%emt 0:00:00]} Rfa8 {[%emt 0:00:00]} 23. Nc7 {[%emt 0:00:00]} Rc8 {[%emt 0:00:00]} 24. Nb5 {[%emt 0:02:00]} Nf6 {[%emt 0:00:00]} 25. Rhe1 {[%emt 0:00:00]} Kf8 {[%emt 0:04:00]} 26. c4 {[%emt 0:01:00]} Ncd7 {[%emt 0:00:00]} 27. Kc3 {[%emt 0:00:00]} h6 {[%emt 0:00:00]} 28. g3 {[%emt 0:00:00]} g5 {[%emt 0:00:00]} 29. Kb4 {[%emt 0:00:00]} Raa8 {[%emt 0:02:00]} 30. Re2 {[%emt 0:00:00]} Nc5 {[%emt 0:00:00]} 31. Rf1 {[%emt 0:00:00]} Na6+ {[%emt 0:01:00]} 32. Kb3 {[%emt 0:00:00]} Nc5+ {[%emt 0:00:00]} 33. Kb4 {[%emt 0:00:00]} Na6+ {[%emt 0:00:00]} 34. Kb3 {[%emt 0:00:00]} Nc5+ {[%emt 0:00:00]} 1/2-1/2